[Event "December 19 Early 2023"]
[Site "https://www.chess.com"]
[Date "2023.12.19"]
[Round "10"]
[White "Navyblue1"]
[Black "Gruzman, Ilya"]
[Result "1-0"]
[Board "149"]
[TimeControl "180+1"]
[BlackFideId "2812703"]
[WhiteElo "2063"]
[BlackElo "1986"]
[BlackTeam "ISR"]
[WhiteClock "0:00:22"]
[BlackClock "0:00:18"]

1. d4 {[%clk 0:02:36]}  d5 {[%clk 0:02:59]} 2. c4 {[%clk 0:02:35]}  e6 {[%clk 0:03:00]} 3. Nf3 {[%clk 0:02:34]}  Nf6 {[%clk 0:03:01]} 4. Nc3 {[%clk 0:02:34]}  Ke7 {[%clk 0:03:02]} 5. Bg5 {[%clk 0:02:31]}  Kd7 {[%clk 0:02:57]} 6. Ne5+ {[%clk 0:02:21]}  Ke8 {[%clk 0:02:56]} 7. cxd5 {[%clk 0:02:08]}  exd5 {[%clk 0:02:53]} 8. Bxf6 {[%clk 0:02:09]}  gxf6 {[%clk 0:02:53]} 9. Nd3 {[%clk 0:02:06]}  Nc6 {[%clk 0:02:53]} 10. e3 {[%clk 0:02:06]}  Bf5 {[%clk 0:02:52]} 11. Be2 {[%clk 0:02:03]}  Bd6 {[%clk 0:02:52]} 12. Bf3 {[%clk 0:01:57]}  Nb4 {[%clk 0:02:43]} 13. Nxb4 {[%clk 0:01:56]}  Bxb4 {[%clk 0:02:44]} 14. Qa4+ {[%clk 0:01:56]}  Qd7 {[%clk 0:02:39]} 15. Qxb4 {[%clk 0:01:55]}  c6 {[%clk 0:02:38]} 16. Qb3 {[%clk 0:01:52]}  Rg8 {[%clk 0:02:29]} 17. O-O-O {[%clk 0:01:50]}  a5 {[%clk 0:02:22]} 18. e4 {[%clk 0:01:44]}  Be6 {[%clk 0:02:07]} 19. exd5 {[%clk 0:01:36]}  cxd5 {[%clk 0:02:08]} 20. Qb5 {[%clk 0:01:30]}  Qxb5 {[%clk 0:02:02]} 21. Nxb5 {[%clk 0:01:31]}  Kd7 {[%clk 0:02:02]} 22. Nc3 {[%clk 0:01:26]}  Kd6 {[%clk 0:02:01]} 23. a4 {[%clk 0:01:23]}  Rac8 {[%clk 0:02:00]} 24. Kd2 {[%clk 0:01:21]}  Rc4 {[%clk 0:01:59]} 25. Ke2 {[%clk 0:01:17]}  Re8 {[%clk 0:01:47]} 26. Kf1 {[%clk 0:01:07]}  Rb4 {[%clk 0:01:47]} 27. Rd2 {[%clk 0:01:02]}  Rc8 {[%clk 0:01:48]} 28. Be2 {[%clk 0:00:47]}  Bf5 {[%clk 0:01:38]} 29. f3 {[%clk 0:00:37]}  Re8 {[%clk 0:01:09]} 30. Kf2 {[%clk 0:00:36]}  Bg6 {[%clk 0:01:02]} 31. Rc1 {[%clk 0:00:33]}  Rc8 {[%clk 0:00:59]} 32. f4 {[%clk 0:00:24]}  h5 {[%clk 0:00:47]} 33. Nb5+ {[%clk 0:00:20]}  Rxb5 {[%clk 0:00:46]} 34. Rxc8 {[%clk 0:00:20]}  Rb4 {[%clk 0:00:46]} 35. Rd8+ {[%clk 0:00:19]}  Ke7 {[%clk 0:00:46]} 36. Rc8 {[%clk 0:00:19]}  Rxa4 {[%clk 0:00:45]} 37. Rc7+ {[%clk 0:00:19]}  Kf8 {[%clk 0:00:45]} 38. Rxb7 {[%clk 0:00:20]}  Ra1 {[%clk 0:00:44]} 39. Rb5 {[%clk 0:00:20]}  Be4 {[%clk 0:00:41]} 40. Bf3 {[%clk 0:00:20]}  f5 {[%clk 0:00:41]} 41. Bxe4 {[%clk 0:00:20]}  fxe4 {[%clk 0:00:42]} 42. Rxd5 {[%clk 0:00:20]}  Rh1 {[%clk 0:00:41]} 43. Re5 {[%clk 0:00:20]}  Rxh2 {[%clk 0:00:40]} 44. Rxe4 {[%clk 0:00:20]}  Rh1 {[%clk 0:00:41]} 45. f5 {[%clk 0:00:20]}  h4 {[%clk 0:00:41]} 46. Rg4 {[%clk 0:00:20]}  h3 {[%clk 0:00:40]} 47. gxh3 {[%clk 0:00:19]}  Rxh3 {[%clk 0:00:41]} 48. Kg2 {[%clk 0:00:19]}  Rb3 {[%clk 0:00:40]} 49. Rf4 {[%clk 0:00:19]}  a4 {[%clk 0:00:40]} 50. d5 {[%clk 0:00:20]}  a3 {[%clk 0:00:40]} 51. bxa3 {[%clk 0:00:20]}  Rxa3 {[%clk 0:00:41]} 52. d6 {[%clk 0:00:21]}  Ke8 {[%clk 0:00:39]} 53. Re4+ {[%clk 0:00:21]}  Kd8 {[%clk 0:00:18]} 54. d7 {[%clk 0:00:22]} 1-0

[Event "December 19 Early 2023"]
[Site "https://www.chess.com"]
[Date "2023.12.19"]
[Round "10"]
[White "Larina, Maria"]
[Black "Dominguez Rincon, Miller Duvan"]
[Result "0-1"]
[Board "150"]
[TimeControl "180+1"]
[WhiteFideId "24113182"]
[BlackFideId "4406583"]
[WhiteElo "1848"]
[BlackElo "1960"]
[WhiteTeam "FID"]
[BlackTeam "COL"]
[WhiteClock "0:00:22"]
[BlackClock "0:00:54"]

1. e4 {[%clk 0:02:52]}  e5 {[%clk 0:02:59]} 2. Nf3 {[%clk 0:02:51]}  Nc6 {[%clk 0:02:59]} 3. Nc3 {[%clk 0:02:51]}  Nf6 {[%clk 0:02:59]} 4. Bb5 {[%clk 0:02:51]}  Bb4 {[%clk 0:02:58]} 5. O-O {[%clk 0:02:51]}  O-O {[%clk 0:02:58]} 6. d3 {[%clk 0:02:52]}  d6 {[%clk 0:02:58]} 7. Ne2 {[%clk 0:02:52]}  Ne7 {[%clk 0:02:55]} 8. c3 {[%clk 0:02:52]}  Ba5 {[%clk 0:02:55]} 9. Ng3 {[%clk 0:02:53]}  Ng6 {[%clk 0:02:54]} 10. d4 {[%clk 0:02:52]}  c6 {[%clk 0:02:53]} 11. Ba4 {[%clk 0:02:51]}  h6 {[%clk 0:02:37]} 12. Bc2 {[%clk 0:02:49]}  Re8 {[%clk 0:02:29]} 13. h3 {[%clk 0:02:41]}  Be6 {[%clk 0:01:51]} 14. Kh2 {[%clk 0:02:26]}  Qc7 {[%clk 0:01:47]} 15. b4 {[%clk 0:02:23]}  Bb6 {[%clk 0:01:46]} 16. a4 {[%clk 0:02:20]}  a5 {[%clk 0:01:45]} 17. Be3 {[%clk 0:02:00]}  Rad8 {[%clk 0:01:42]} 18. Qe2 {[%clk 0:01:40]}  d5 {[%clk 0:01:41]} 19. dxe5 {[%clk 0:01:31]}  Nxe4 {[%clk 0:01:28]} 20. Bxb6 {[%clk 0:01:23]}  Qxb6 {[%clk 0:01:27]} 21. Nxe4 {[%clk 0:01:23]}  dxe4 {[%clk 0:01:25]} 22. Qxe4 {[%clk 0:01:23]}  Bd5 {[%clk 0:01:22]} 23. Qf5 {[%clk 0:01:10]}  Bxf3 {[%clk 0:01:18]} 24. Qxf3 {[%clk 0:01:05]}  Nxe5 {[%clk 0:01:18]} 25. Qf4 {[%clk 0:01:05]}  axb4 {[%clk 0:01:11]} 26. cxb4 {[%clk 0:01:05]}  Rd4 {[%clk 0:01:09]} 27. Qf5 {[%clk 0:01:03]}  g6 {[%clk 0:01:05]} 28. Qf6 {[%clk 0:00:58]}  Re6 {[%clk 0:00:59]} 29. a5 {[%clk 0:00:42]}  Qc7 {[%clk 0:00:57]} 30. Qxe6 {[%clk 0:00:25]}  fxe6 {[%clk 0:00:56]} 31. Rae1 {[%clk 0:00:23]}  Nf3+ {[%clk 0:00:55]} 32. Kh1 {[%clk 0:00:22]}  Qh2# {[%clk 0:00:54]} 0-1

[Event "December 19 Early 2023"]
[Site "https://www.chess.com"]
[Date "2023.12.19"]
[Round "10"]
[White "Chemin, Justo Reinaldo"]
[Black "Bogumil, Tatiana"]
[Result "1-0"]
[Board "151"]
[TimeControl "180+1"]
[WhiteFideId "2101580"]
[BlackFideId "4110579"]
[WhiteElo "1940"]
[BlackElo "1853"]
[WhiteTeam "BRA"]
[BlackTeam "RUS"]
[WhiteClock "0:00:18"]
[BlackClock "0:00:00"]

1. e4 {[%clk 0:03:00]}  e6 {[%clk 0:02:58]} 2. d4 {[%clk 0:03:00]}  d5 {[%clk 0:02:59]} 3. Nc3 {[%clk 0:02:59]}  dxe4 {[%clk 0:02:58]} 4. Nxe4 {[%clk 0:02:59]}  Bd7 {[%clk 0:02:59]} 5. Nf3 {[%clk 0:02:58]}  Bc6 {[%clk 0:03:00]} 6. Bd3 {[%clk 0:02:58]}  Nd7 {[%clk 0:03:00]} 7. Qe2 {[%clk 0:02:46]}  Ngf6 {[%clk 0:02:59]} 8. Neg5 {[%clk 0:02:46]}  Qe7 {[%clk 0:02:48]} 9. Ne5 {[%clk 0:02:29]}  Nxe5 {[%clk 0:02:39]} 10. dxe5 {[%clk 0:02:29]}  Nd7 {[%clk 0:02:23]} 11. f4 {[%clk 0:02:08]}  h6 {[%clk 0:02:16]} 12. Ne4 {[%clk 0:02:06]}  Nc5 {[%clk 0:02:08]} 13. Nxc5 {[%clk 0:02:03]}  Qxc5 {[%clk 0:02:09]} 14. Be3 {[%clk 0:02:00]}  Qd5 {[%clk 0:01:59]} 15. O-O {[%clk 0:01:54]}  Bc5 {[%clk 0:01:56]} 16. Bxc5 {[%clk 0:01:48]}  Qxc5+ {[%clk 0:01:57]} 17. Qf2 {[%clk 0:01:45]}  Qxf2+ {[%clk 0:01:51]} 18. Kxf2 {[%clk 0:01:45]}  g6 {[%clk 0:01:50]} 19. g3 {[%clk 0:01:43]}  h5 {[%clk 0:01:49]} 20. h4 {[%clk 0:01:43]}  O-O-O {[%clk 0:01:49]} 21. Ke3 {[%clk 0:01:42]}  Rd7 {[%clk 0:01:42]} 22. Rfd1 {[%clk 0:01:41]}  Rhd8 {[%clk 0:01:42]} 23. Be2 {[%clk 0:01:35]}  a5 {[%clk 0:01:24]} 24. Rxd7 {[%clk 0:01:34]}  Rxd7 {[%clk 0:01:25]} 25. Rg1 {[%clk 0:01:28]}  a4 {[%clk 0:01:20]} 26. a3 {[%clk 0:01:26]}  b5 {[%clk 0:01:16]} 27. g4 {[%clk 0:01:25]}  hxg4 {[%clk 0:01:15]} 28. Rxg4 {[%clk 0:01:24]}  Kb7 {[%clk 0:01:12]} 29. h5 {[%clk 0:01:23]}  gxh5 {[%clk 0:01:11]} 30. Rh4 {[%clk 0:01:22]}  Kb6 {[%clk 0:00:57]} 31. Rxh5 {[%clk 0:01:23]}  Rd8 {[%clk 0:00:32]} 32. Rh7 {[%clk 0:01:20]}  Rf8 {[%clk 0:00:32]} 33. Bh5 {[%clk 0:01:17]}  f6 {[%clk 0:00:30]} 34. Bf7 {[%clk 0:01:03]}  fxe5 {[%clk 0:00:25]} 35. fxe5 {[%clk 0:01:03]}  Bd5 {[%clk 0:00:24]} 36. Kf4 {[%clk 0:00:59]}  Kc5 {[%clk 0:00:16]} 37. Kg5 {[%clk 0:00:58]}  Kd4 {[%clk 0:00:08]} 38. Kf6 {[%clk 0:00:57]}  c5 {[%clk 0:00:05]} 39. Ke7 {[%clk 0:00:53]}  Rb8 {[%clk 0:00:04]} 40. Kf6 {[%clk 0:00:39]}  b4 {[%clk 0:00:02]} 41. Rh4+ {[%clk 0:00:36]}  Ke3 {[%clk 0:00:01]} 42. Rh3+ {[%clk 0:00:29]}  Kd2 {[%clk 0:00:01]} 43. Rh2+ {[%clk 0:00:29]}  Kc1 {[%clk 0:00:01]} 44. Ke7 {[%clk 0:00:20]}  bxa3 {[%clk 0:00:01]} 45. bxa3 {[%clk 0:00:18]}  Kb2 {[%clk 0:00:00]} 46. c4+ {[%clk 0:00:18]} 1-0

[Event "December 19 Early 2023"]
[Site "https://www.chess.com"]
[Date "2023.12.19"]
[Round "10"]
[White "Arshiya Das"]
[Black "Zepeda Berlanga, Jan Enrique"]
[Result "1-0"]
[Board "152"]
[TimeControl "180+1"]
[WhiteFideId "25652150"]
[BlackFideId "5132355"]
[WhiteElo "1481"]
[BlackElo "1680"]
[WhiteTeam "IND"]
[BlackTeam "MEX"]
[WhiteClock "0:00:59"]
[BlackClock "0:00:54"]

1. e4 {[%clk 0:03:00]}  c5 {[%clk 0:03:00]} 2. Nf3 {[%clk 0:03:00]}  d6 {[%clk 0:02:59]} 3. d4 {[%clk 0:03:00]}  cxd4 {[%clk 0:02:59]} 4. Nxd4 {[%clk 0:03:01]}  Nf6 {[%clk 0:02:59]} 5. Nc3 {[%clk 0:03:01]}  Nc6 {[%clk 0:03:00]} 6. f4 {[%clk 0:02:59]}  e6 {[%clk 0:02:50]} 7. Nf3 {[%clk 0:02:58]}  Be7 {[%clk 0:02:49]} 8. Bd3 {[%clk 0:02:58]}  O-O {[%clk 0:02:44]} 9. O-O {[%clk 0:02:57]}  Qb6+ {[%clk 0:02:43]} 10. Kh1 {[%clk 0:02:56]}  d5 {[%clk 0:02:28]} 11. e5 {[%clk 0:02:28]}  Ng4 {[%clk 0:02:18]} 12. Qe1 {[%clk 0:02:22]}  f5 {[%clk 0:02:15]} 13. exf6 {[%clk 0:02:16]}  Nxf6 {[%clk 0:02:15]} 14. Ne5 {[%clk 0:02:01]}  Bb4 {[%clk 0:02:01]} 15. a3 {[%clk 0:01:58]}  Bxc3 {[%clk 0:01:58]} 16. bxc3 {[%clk 0:01:58]}  Qc7 {[%clk 0:01:51]} 17. Nf3 {[%clk 0:01:49]}  Bd7 {[%clk 0:01:45]} 18. Ng5 {[%clk 0:01:43]}  Rae8 {[%clk 0:01:43]} 19. Qh4 {[%clk 0:01:43]}  h6 {[%clk 0:01:38]} 20. Nf3 {[%clk 0:01:42]}  Ne7 {[%clk 0:01:32]} 21. Ne5 {[%clk 0:01:39]}  Qxc3 {[%clk 0:01:29]} 22. Rb1 {[%clk 0:01:33]}  Qc7 {[%clk 0:01:26]} 23. Bb2 {[%clk 0:01:30]}  Nf5 {[%clk 0:01:25]} 24. Bxf5 {[%clk 0:01:27]}  exf5 {[%clk 0:01:25]} 25. Qf2 {[%clk 0:01:05]}  Be6 {[%clk 0:01:07]} 26. Rfc1 {[%clk 0:01:02]}  a6 {[%clk 0:01:04]} 27. Qd4 {[%clk 0:01:00]}  Qc4 {[%clk 0:00:54]} 28. Nxc4 {[%clk 0:00:59]} 1-0

[Event "December 19 Early 2023"]
[Site "https://www.chess.com"]
[Date "2023.12.19"]
[Round "10"]
[White "SulfatoFerroso"]
[Black "Brandao, Marcius Gomes"]
[Result "1-0"]
[Board "154"]
[TimeControl "180+1"]
[BlackFideId "2124980"]
[WhiteElo "1928"]
[BlackElo "2088"]
[BlackTeam "BRA"]
[WhiteClock "0:01:09"]
[BlackClock "0:00:08"]

1. e4 {[%clk 0:02:54]}  c5 {[%clk 0:02:57]} 2. d4 {[%clk 0:02:52]}  cxd4 {[%clk 0:02:53]} 3. c3 {[%clk 0:02:53]}  Nf6 {[%clk 0:02:52]} 4. e5 {[%clk 0:02:51]}  Nd5 {[%clk 0:02:50]} 5. cxd4 {[%clk 0:02:52]}  d6 {[%clk 0:02:46]} 6. f4 {[%clk 0:02:46]}  dxe5 {[%clk 0:02:41]} 7. fxe5 {[%clk 0:02:41]}  Nc6 {[%clk 0:02:38]} 8. Nf3 {[%clk 0:02:32]}  Bg4 {[%clk 0:02:38]} 9. Nc3 {[%clk 0:02:21]}  e6 {[%clk 0:02:34]} 10. Bb5 {[%clk 0:02:18]}  Bb4 {[%clk 0:02:23]} 11. O-O {[%clk 0:02:14]}  O-O {[%clk 0:02:05]} 12. Bxc6 {[%clk 0:02:12]}  Nxc3 {[%clk 0:01:50]} 13. bxc3 {[%clk 0:02:06]}  Bxc3 {[%clk 0:01:49]} 14. Bxb7 {[%clk 0:02:03]}  Bxa1 {[%clk 0:01:28]} 15. Bxa8 {[%clk 0:02:00]}  Qxa8 {[%clk 0:01:28]} 16. Ba3 {[%clk 0:01:56]}  Bc3 {[%clk 0:00:42]} 17. Bxf8 {[%clk 0:01:54]}  Qxf8 {[%clk 0:00:42]} 18. Qb3 {[%clk 0:01:37]}  Bxf3 {[%clk 0:00:22]} 19. Qxc3 {[%clk 0:01:34]}  Bd5 {[%clk 0:00:20]} 20. a4 {[%clk 0:01:26]}  h6 {[%clk 0:00:18]} 21. Rc1 {[%clk 0:01:19]}  Kh7 {[%clk 0:00:18]} 22. Qd3+ {[%clk 0:01:13]}  g6 {[%clk 0:00:18]} 23. Rc7 {[%clk 0:01:11]}  Qb8 {[%clk 0:00:08]} 24. Rxf7+ {[%clk 0:01:09]} 1-0

[Event "December 19 Early 2023"]
[Site "https://www.chess.com"]
[Date "2023.12.19"]
[Round "10"]
[White "Santos, Isaque Goncalves"]
[Black "Nikulina, Alena"]
[Result "1-0"]
[Board "155"]
[TimeControl "180+1"]
[WhiteFideId "2103885"]
[BlackFideId "4172051"]
[WhiteElo "1901"]
[BlackElo "1627"]
[WhiteTeam "BRA"]
[BlackTeam "RUS"]
[WhiteClock "0:00:30"]
[BlackClock "0:00:01"]

1. d4 {[%clk 0:02:56]}  d5 {[%clk 0:02:59]} 2. c4 {[%clk 0:02:55]}  dxc4 {[%clk 0:02:59]} 3. Nc3 {[%clk 0:02:55]}  a6 {[%clk 0:02:58]} 4. a4 {[%clk 0:02:50]}  Nf6 {[%clk 0:02:57]} 5. Nf3 {[%clk 0:02:49]}  e6 {[%clk 0:02:55]} 6. e3 {[%clk 0:02:46]}  c5 {[%clk 0:02:56]} 7. Bxc4 {[%clk 0:02:43]}  Nc6 {[%clk 0:02:56]} 8. dxc5 {[%clk 0:02:30]}  Qxd1+ {[%clk 0:02:55]} 9. Nxd1 {[%clk 0:02:28]}  Bxc5 {[%clk 0:02:55]} 10. O-O {[%clk 0:02:27]}  Nb4 {[%clk 0:02:44]} 11. Bd2 {[%clk 0:02:24]}  Nbd5 {[%clk 0:02:40]} 12. Ne5 {[%clk 0:02:04]}  O-O {[%clk 0:02:29]} 13. Nd3 {[%clk 0:02:03]}  Be7 {[%clk 0:02:26]} 14. Nc3 {[%clk 0:01:59]}  Nxc3 {[%clk 0:02:19]} 15. Bxc3 {[%clk 0:01:58]}  b6 {[%clk 0:02:17]} 16. Bd4 {[%clk 0:01:52]}  Rb8 {[%clk 0:02:06]} 17. Be5 {[%clk 0:01:47]}  Ra8 {[%clk 0:02:03]} 18. Bc7 {[%clk 0:01:45]}  Bd8 {[%clk 0:01:58]} 19. Bd6 {[%clk 0:01:41]}  Re8 {[%clk 0:01:56]} 20. f3 {[%clk 0:01:28]}  Bb7 {[%clk 0:01:54]} 21. e4 {[%clk 0:01:27]}  Be7 {[%clk 0:01:48]} 22. Bc7 {[%clk 0:01:26]}  Bd8 {[%clk 0:01:48]} 23. Bg3 {[%clk 0:01:23]}  Rc8 {[%clk 0:01:45]} 24. Rfc1 {[%clk 0:01:22]}  Bc7 {[%clk 0:01:35]} 25. Bf2 {[%clk 0:01:21]}  Red8 {[%clk 0:01:21]} 26. Nb4 {[%clk 0:01:20]}  a5 {[%clk 0:01:06]} 27. Na2 {[%clk 0:01:05]}  Rd2 {[%clk 0:00:58]} 28. Rab1 {[%clk 0:00:56]}  Nd7 {[%clk 0:00:25]} 29. Be3 {[%clk 0:00:55]}  Rd6 {[%clk 0:00:20]} 30. Nc3 {[%clk 0:00:54]}  Ne5 {[%clk 0:00:19]} 31. Bf1 {[%clk 0:00:52]}  Rdd8 {[%clk 0:00:18]} 32. Nb5 {[%clk 0:00:52]}  Bb8 {[%clk 0:00:15]} 33. Bxb6 {[%clk 0:00:50]}  Rxc1 {[%clk 0:00:13]} 34. Rxc1 {[%clk 0:00:50]}  Rd2 {[%clk 0:00:10]} 35. Bxa5 {[%clk 0:00:42]}  Rxb2 {[%clk 0:00:06]} 36. Bc3 {[%clk 0:00:39]}  Ra2 {[%clk 0:00:03]} 37. Ra1 {[%clk 0:00:39]}  Rxa1 {[%clk 0:00:03]} 38. Bxa1 {[%clk 0:00:38]}  f6 {[%clk 0:00:04]} 39. Bc3 {[%clk 0:00:34]}  Ba6 {[%clk 0:00:04]} 40. Nd4 {[%clk 0:00:30]}  Kf7 {[%clk 0:00:01]} 41. Bxa6 {[%clk 0:00:30]} 1-0

[Event "December 19 Early 2023"]
[Site "https://www.chess.com"]
[Date "2023.12.19"]
[Round "10"]
[White "Ghosh, Chanchal Kumer"]
[Black "Vargas, Mauricio"]
[Result "0-1"]
[Board "156"]
[TimeControl "180+1"]
[WhiteFideId "10201858"]
[BlackFideId "4404572"]
[WhiteElo "2067"]
[BlackElo "1982"]
[WhiteTeam "BAN"]
[BlackTeam "COL"]
[WhiteClock "0:00:00"]
[BlackClock "0:01:50"]

1. e4 {[%clk 0:03:00]}  d5 {[%clk 0:02:58]} 2. exd5 {[%clk 0:03:00]}  Qxd5 {[%clk 0:02:59]} 3. Nc3 {[%clk 0:02:59]}  Qa5 {[%clk 0:02:58]} 4. d4 {[%clk 0:03:00]}  c6 {[%clk 0:02:59]} 5. Nf3 {[%clk 0:03:00]}  Nf6 {[%clk 0:02:59]} 6. Bc4 {[%clk 0:03:00]}  Bg4 {[%clk 0:02:58]} 7. Bd2 {[%clk 0:02:58]}  Qc7 {[%clk 0:02:57]} 8. Qe2 {[%clk 0:02:27]}  e6 {[%clk 0:02:56]} 9. h3 {[%clk 0:02:23]}  Bf5 {[%clk 0:02:51]} 10. O-O {[%clk 0:02:20]}  Bd6 {[%clk 0:02:50]} 11. Bg5 {[%clk 0:02:18]}  Nbd7 {[%clk 0:02:48]} 12. Rfe1 {[%clk 0:02:00]}  O-O {[%clk 0:02:47]} 13. Nh4 {[%clk 0:01:36]}  Bg6 {[%clk 0:02:29]} 14. Nxg6 {[%clk 0:01:26]}  hxg6 {[%clk 0:02:27]} 15. Ne4 {[%clk 0:01:21]}  Nxe4 {[%clk 0:02:26]} 16. Qxe4 {[%clk 0:01:20]}  Rae8 {[%clk 0:02:20]} 17. Bb3 {[%clk 0:01:15]}  Nf6 {[%clk 0:02:10]} 18. c4 {[%clk 0:00:50]}  Nxe4 {[%clk 0:02:08]} 19. Rxe4 {[%clk 0:00:40]}  e5 {[%clk 0:01:59]} 20. dxe5 {[%clk 0:00:00]}  Rxe5 {[%clk 0:01:50]} 0-1

[Event "December 19 Early 2023"]
[Site "https://www.chess.com"]
[Date "2023.12.19"]
[Round "10"]
[White "Zainullina, Nataliya"]
[Black "Seletsky, Grigory"]
[Result "1-0"]
[Board "158"]
[TimeControl "180+1"]
[WhiteFideId "4145488"]
[BlackFideId "14112191"]
[WhiteElo "2187"]
[BlackElo "2482"]
[WhiteTeam "RUS"]
[BlackTeam "UKR"]
[WhiteClock "0:00:20"]
[BlackClock "0:00:28"]

1. e4 {[%clk 0:02:59]}  c6 {[%clk 0:02:08]} 2. Nc3 {[%clk 0:02:54]}  d5 {[%clk 0:02:05]} 3. Nf3 {[%clk 0:02:53]}  Bg4 {[%clk 0:02:02]} 4. exd5 {[%clk 0:02:53]}  cxd5 {[%clk 0:02:01]} 5. Bb5+ {[%clk 0:02:53]}  Nc6 {[%clk 0:02:02]} 6. h3 {[%clk 0:02:53]}  Bxf3 {[%clk 0:02:00]} 7. Qxf3 {[%clk 0:02:52]}  e6 {[%clk 0:02:01]} 8. O-O {[%clk 0:02:51]}  Bd6 {[%clk 0:02:01]} 9. Ne2 {[%clk 0:02:44]}  Ne7 {[%clk 0:02:01]} 10. d4 {[%clk 0:02:44]}  O-O {[%clk 0:02:02]} 11. c3 {[%clk 0:02:41]}  Ng6 {[%clk 0:01:59]} 12. Bxc6 {[%clk 0:02:38]}  bxc6 {[%clk 0:01:58]} 13. Nf4 {[%clk 0:02:34]}  Bxf4 {[%clk 0:01:53]} 14. Bxf4 {[%clk 0:02:33]}  Qf6 {[%clk 0:01:53]} 15. Bd6 {[%clk 0:02:11]}  Qxf3 {[%clk 0:01:49]} 16. gxf3 {[%clk 0:02:11]}  Rfd8 {[%clk 0:01:49]} 17. Bg3 {[%clk 0:01:47]}  f5 {[%clk 0:01:48]} 18. Be5 {[%clk 0:01:41]}  Nh4 {[%clk 0:01:41]} 19. f4 {[%clk 0:01:34]}  Nf3+ {[%clk 0:01:41]} 20. Kg2 {[%clk 0:01:33]}  Nxe5 {[%clk 0:01:40]} 21. fxe5 {[%clk 0:01:33]}  a5 {[%clk 0:01:39]} 22. b3 {[%clk 0:01:31]}  Rdb8 {[%clk 0:01:39]} 23. Rfb1 {[%clk 0:01:30]}  Rb5 {[%clk 0:01:37]} 24. a4 {[%clk 0:01:17]}  Rb6 {[%clk 0:01:36]} 25. b4 {[%clk 0:01:16]}  Rab8 {[%clk 0:01:36]} 26. Kf3 {[%clk 0:01:04]}  axb4 {[%clk 0:01:11]} 27. cxb4 {[%clk 0:01:03]}  Rxb4 {[%clk 0:01:11]} 28. Rxb4 {[%clk 0:01:02]}  Rxb4 {[%clk 0:01:10]} 29. a5 {[%clk 0:01:02]}  Rb7 {[%clk 0:01:11]} 30. Ke3 {[%clk 0:00:57]}  Kf7 {[%clk 0:01:07]} 31. Kd3 {[%clk 0:00:57]}  Ke7 {[%clk 0:01:07]} 32. Kc3 {[%clk 0:00:57]}  Kd7 {[%clk 0:01:07]} 33. a6 {[%clk 0:00:58]}  Ra7 {[%clk 0:01:06]} 34. Kb4 {[%clk 0:00:57]}  g5 {[%clk 0:01:01]} 35. Ka5 {[%clk 0:00:41]}  Kc7 {[%clk 0:00:59]} 36. Rg1 {[%clk 0:00:39]}  h6 {[%clk 0:00:59]} 37. f4 {[%clk 0:00:36]}  Ra8 {[%clk 0:00:56]} 38. fxg5 {[%clk 0:00:33]}  Rg8 {[%clk 0:00:57]} 39. gxh6 {[%clk 0:00:31]}  Rh8 {[%clk 0:00:49]} 40. Rg7+ {[%clk 0:00:29]}  Kb8 {[%clk 0:00:48]} 41. Kb6 {[%clk 0:00:26]}  Ka8 {[%clk 0:00:41]} 42. h7 {[%clk 0:00:26]}  Rb8+ {[%clk 0:00:39]} 43. Kxc6 {[%clk 0:00:24]}  Rc8+ {[%clk 0:00:28]} 44. Kd7 {[%clk 0:00:20]} 1-0

[Event "December 19 Early 2023"]
[Site "https://www.chess.com"]
[Date "2023.12.19"]
[Round "10"]
[White "Donatti, Alvaro"]
[Black "Sarkar, Justin"]
[Result "1-0"]
[Board "160"]
[TimeControl "180+1"]
[WhiteFideId "3000303"]
[BlackFideId "2010011"]
[WhiteElo "2138"]
[BlackElo "2138"]
[WhiteTeam "URU"]
[BlackTeam "USA"]
[WhiteClock "0:00:28"]
[BlackClock "0:00:00"]

1. e4 {[%clk 0:03:00]}  e5 {[%clk 0:02:08]} 2. Nf3 {[%clk 0:03:00]}  Nc6 {[%clk 0:02:07]} 3. Bb5 {[%clk 0:02:59]}  a6 {[%clk 0:02:07]} 4. Ba4 {[%clk 0:02:59]}  Nf6 {[%clk 0:02:07]} 5. O-O {[%clk 0:02:57]}  Be7 {[%clk 0:02:07]} 6. Re1 {[%clk 0:02:56]}  b5 {[%clk 0:02:07]} 7. Bb3 {[%clk 0:02:55]}  d6 {[%clk 0:02:08]} 8. c3 {[%clk 0:02:53]}  O-O {[%clk 0:02:07]} 9. h3 {[%clk 0:02:53]}  Na5 {[%clk 0:02:05]} 10. Bc2 {[%clk 0:02:52]}  c5 {[%clk 0:02:03]} 11. d3 {[%clk 0:02:51]}  Nc6 {[%clk 0:01:55]} 12. Nbd2 {[%clk 0:02:50]}  Be6 {[%clk 0:01:50]} 13. Nf1 {[%clk 0:02:49]}  h6 {[%clk 0:01:41]} 14. Ng3 {[%clk 0:02:48]}  Re8 {[%clk 0:01:37]} 15. d4 {[%clk 0:02:44]}  cxd4 {[%clk 0:01:16]} 16. cxd4 {[%clk 0:02:44]}  exd4 {[%clk 0:01:15]} 17. Nxd4 {[%clk 0:02:43]}  Nxd4 {[%clk 0:01:14]} 18. Qxd4 {[%clk 0:02:41]}  Rc8 {[%clk 0:01:13]} 19. Bd3 {[%clk 0:02:33]}  d5 {[%clk 0:01:12]} 20. e5 {[%clk 0:02:28]}  Nd7 {[%clk 0:01:07]} 21. Nf5 {[%clk 0:02:11]}  Bf8 {[%clk 0:00:25]} 22. Qg4 {[%clk 0:01:19]}  g6 {[%clk 0:00:18]} 23. Qg3 {[%clk 0:01:12]}  Kh7 {[%clk 0:00:09]} 24. Nh4 {[%clk 0:01:03]}  Be7 {[%clk 0:00:01]} 25. Nxg6 {[%clk 0:00:54]}  Nc5 {[%clk 0:00:00]} 26. Nxe7+ {[%clk 0:00:28]} 1-0